Cogmind - Beta 11.1 @@@ ROGUE MODE // 2022.07.04 @ 12:08:20 Player: Calazard Result: Destroyed by G-47 Trooper with Particle Gun Performance ------------- Evolutions (1) 500 Regions Visited (4) 800 Robots Destroyed (6) 30 Value Destroyed (125) 125 Prototype IDs (2) 40 Alien Tech Used (0) 0 Bonus (200) 200 TOTAL SCORE: 1695 Bonus ------- Pacifist 200 Cogmind --------- Core Integrity 0/400 Matter 300/300 Energy 98/100 System Corruption 0% Temperature Cool (25) Movement Walking (120) Location -9/Storage Parts ------- > --- POWER (1) -------- (None) > --- PROPULSION (2) --- Improved Aluminum Leg > --- UTILITY (3) ------ Small Storage Unit > --- WEAPON (3) ------- (None) > --- INVENTORY (8) ---- Compact Wheel Machine Analyzer Light EM Pulse Cannon Improved Assault Rifle Peak State ------------ > --- POWER ------------ Ion Engine > --- PROPULSION ------- Improved Aluminum Leg Improved Aluminum Leg > --- UTILITY ---------- Small Storage Unit Light Armor Plating Shield Generator > --- WEAPON ----------- Beam Rifle Heavy Assault Rifle > --- INVENTORY -------- Improved Aluminum Leg Improved Aluminum Leg Compact Wheel Machine Analyzer Light EM Pulse Cannon [Rating: 14] Favorites ----------- Power Ion Engine Engine Ion Engine Propulsion Compact Wheel Leg Improved Aluminum Leg Wheel Compact Wheel Utility Small Storage Unit Device Sensor Array Storage Small Storage Unit Protection Light Armor Plating Weapon Light EM Pulse Cannon Energy Gun Medium Laser Energy Cannon Light EM Pulse Cannon Ballistic Gun Heavy Assault Rifle Build | -11 -10 -10 -9 -9 ------- Run | Scr Mat Min Mat Sto Slots Evolved 2 | . . . 2 . Power . | . . . . . Propulsion . | . . . . . Utility 1 | . . . 1 . Weapon 1 | . . . 1 . Parts Attached 21 | 4 6 1 2 8 Power 1 | . 1 . . . Engine 1 | . 1 . . . Core . | . . . . . Reactor . | . . . . . Propulsion 7 | 2 . . . 5 Treads . | . . . . . Leg 5 | . . . . 5 Wheel 2 | 2 . . . . Hover . | . . . . . Flight . | . . . . . Utility 6 | 1 2 . 1 2 Device 4 | . 2 . 1 1 Storage 1 | 1 . . . . Processor . | . . . . . Hackware . | . . . . . Protection 1 | . . . . 1 Artifact . | . . . . . Weapon 7 | 1 3 1 1 1 Energy Gun 2 | . . 1 1 . Energy Cannon 3 | . 3 . . . Ballistic Gun 2 | 1 . . . 1 Ballistic Cannon . | . . . . . Launcher . | . . . . . Special Weapon . | . . . . . Impact Weapon . | . . . . . Slashing Weapon . | . . . . . Piercing Weapon . | . . . . . Special Melee Weapon . | . . . . . Unidentified Prototypes . | . . . . . Parts Lost 12 | . . . . 12 Power 1 | . . . . 1 Propulsion 4 | . . . . 4 Utility 4 | . . . . 4 Weapon 3 | . . . . 3 Highest Loss Streak 6 | . . . . 6 To Critical Strikes . | . . . . . Average Slot Usage (%) 87 | . 92 100 94 65 Engine 10 | . 12 14 11 6 Leg 4 | . . . . 14 Wheel 20 | . 28 28 22 5 Device 13 | . 12 14 22 8 Storage 12 | . 14 14 11 11 Energy Gun 7 | . . 4 17 9 Energy Cannon 14 | . 21 23 11 . Ballistic Gun 2 | . 1 . . 6 Naked Turns . | . . . . . Heaviest Build 22 | 7 20 19 22 21 Greatest Support 32 | 32 32 32 32 32 Greatest Overweight (x) 1 | . . . . 1 Average Overweight (x) . | . . . . . Largest Inventory Capacity 8 | 8 8 8 8 8 Average Capacity 7 | 7 8 8 8 8 Most Carried 8 | 8 8 8 8 8 Average Carried 6 | 5 6 7 7 6 Final Capacity 8 | 8 8 8 8 8 Final Carried 8 | 8 7 7 8 4 Class Distribution -------------------- 85% | Mutant 12% | Tank Dominant Class ---------------- Mutant | -10/Materials Mutant | -10/Mines Mutant | -9/Materials Mutant | -9/Storage Resources | -11 -10 -10 -9 -9 ----------- Run | Scr Mat Min Mat Sto Matter Collected 339 | 217 . 93 20 9 Remotely . | . . . . . Salvage Created 149 | . . . 117 32 Parts 15 | . . . 15 . Haulers Intercepted . | . . . . . Recyclers Shooed 1 | . . . . 1 Parts Field Recycled . | . . . . . Retrieved Matter . | . . . . . Parts Self-Destructed . | . . . . . Prevented . | . . . . . Kills | -11 -10 -10 -9 -9 ------- Run | Scr Mat Min Mat Sto Combat Hostiles Destroyed 5 | . . . 4 1 Guns 3 | . . . 2 1 Cannons 2 | . . . 2 . Classes Destroyed 4 | . . . 3 1 Watcher 1 | . . . 1 . Swarmer 3 | . . . 3 . Grunt 1 | . . . . 1 Sentry 1 | . . . 1 . Best Kill Streak 3 | . . . 3 1 Combat Bots Only 3 | . . . 3 1 Max Kills in Single Turn 2 | . . . 2 1 Gunslinging . | . . . . . Exploded . | . . . . . Melee . | . . . . . Uniques/NPCs Destroyed . | . . . . . Combat | -11 -10 -10 -9 -9 -------- Run | Scr Mat Min Mat Sto Damage Taken 1555 | . . 40 155 1360 Core 411 | . . . 68 343 Absorbed by Shields 147 | . . . 62 85 Regen/Repaired (Parts) 26 | . . . 26 . Core Remaining (%) 100 | 100 . 100 . . Volleys Fired 14 | . . . 9 5 Largest 3 | . . . 3 3 Hottest 162 | . . . 162 129 Shots Fired 37 | . . . 22 15 Gun 29 | . . . 14 15 Cannon 8 | . . . 8 . Launcher . | . . . . . Special . | . . . . . Kinetic 5 | . . . . 5 Thermal 24 | . . . 14 10 Explosive . | . . . . . Electromagnetic 8 | . . . 8 . Robot Hit Streak 7 | . . . 4 7 Robot Miss Streak 3 | . . . 1 3 Penetration Max . | . . . . . Secondary Targets . | . . . . . Shots Hit Robots 22 | . . . 12 10 Core Hits 17 | . . . 7 10 Critical Kills . | . . . . . Critical Parts Destroyed . | . . . . . Critical Strikes 4 | . . . 4 . Burn 3 | . . . 3 . Corrupt 1 | . . . 1 . Melee Attacks . | . . . . . Impact . | . . . . . Slashing . | . . . . . Piercing . | . . . . . Sneak Attacks . | . . . . . Combat Hostiles . | . . . . . Follow-up Attacks . | . . . . . Damage Inflicted 414 | . . . 225 189 Guns 249 | . . . 105 144 Cannons 116 | . . . 116 . Explosions . | . . . . . Melee . | . . . . . Ramming 49 | . . . 4 45 Kinetic 63 | . . . . 63 Thermal 186 | . . . 105 81 Explosive . | . . . . . Electromagnetic 116 | . . . 116 . Impact . | . . . . . Slashing . | . . . . . Piercing . | . . . . . Highest Corruption . | . . . . . Average Corruption . | . . . . . Corruption Purged . | . . . . . Corruption Blocked . | . . . . . Overload Shots . | . . . . . Overflow Damage . | . . . . . Projectiles . | . . . . . Explosions . | . . . . . Melee . | . . . . . Knockbacks . | . . . . . Impact . | . . . . . Kinetic . | . . . . . Secondary . | . . . . . Self-Inflicted Damage 8 | . . . 2 6 Shots . | . . . . . Rammed 3 | . . . 1 2 Targets Rammed 17 | . . . 1 16 Kicked 14 | . . . . 14 Crushed . | . . . . . Highest Temperature 355 | . . . 353 355 Average Temperature 157 | . . . 143 175 Received Heat Transfer 697 | . . 21 44 632 Effects 2 | . . . . 2 Interference 2 | . . . . 2 Siege Activations . | . . . . . Robots Corrupted . | . . . . . Combat Hostiles . | . . . . . Parts Fried . | . . . . . Impact Corruptions . | . . . . . Robots Melted . | . . . . . Combat Hostiles . | . . . . . Parts Melted . | . . . . . Heat Transferred 740 | . . . 518 222 Parts Sabotaged . | . . . . . Parts Stolen . | . . . . . Parts Stripped . | . . . . . Power Chain Reactions . | . . . . . Missiles Intercepted . | . . . . . Alert | -11 -10 -10 -9 -9 ------- Run | Scr Mat Min Mat Sto Peak Influence 167 | . 15 65 167 120 Initial 70 | . . 5 25 70 Average 36 | . 1 20 77 61 Maximum Alert Level . | . . . . . Low Security (%) 100 | 100 100 100 100 100 Level 1 . | . . . . . Level 2 . | . . . . . Level 3 . | . . . . . Level 4 . | . . . . . Level 5 . | . . . . . High Security . | . . . . . Max Security . | . . . . . Squads Dispatched 2 | . 1 . 1 . Investigation . | . . . . . Extermination . | . . . . . Reinforcement 2 | . 1 . 1 . Assault . | . . . . . Garrison . | . . . . . Intercept . | . . . . . Searches Triggered . | . . . . . Construction Impeded . | . . . . . Haulers Reinforced . | . . . . . Active Scanning Responses . | . . . . . Cargo Convoy Interrupts . | . . . . . Stealth | -11 -10 -10 -9 -9 --------- Run | Scr Mat Min Mat Sto Distress Signals 4 | . . . 1 3 Communications Jammed . | . . . . . Distress Signals . | . . . . . Times Spotted 35 | . 3 3 9 20 Peak Tracking Total 15 | . 3 2 7 15 Tactical Retreats 4 | . . 2 1 1 Traps | -11 -10 -10 -9 -9 ------- Run | Scr Mat Min Mat Sto Traps Triggered 1 | . 1 . . . Indirectly . | . . . . . Trap Hack Attempts . | . . . . . Triggered . | . . . . . Disarmed . | . . . . . Reprogrammed . | . . . . . Reused . | . . . . . Traps Extracted . | . . . . . Installed . | . . . . . Triggered . | . . . . . Machines | -11 -10 -10 -9 -9 ---------- Run | Scr Mat Min Mat Sto Machines Disabled . | . . . . . Max in Single Turn . | . . . . . Machines Sabotaged . | . . . . . Garrisons Compromised . | . . . . . Overloaded Fab Kills . | . . . . . Hacking | -11 -10 -10 -9 -9 --------- Run | Scr Mat Min Mat Sto Machines Accessed 4 | . 1 1 2 . Terminals 3 | . 1 1 1 . Fabricators . | . . . . . Repair Stations 1 | . . . 1 . Recycling Units . | . . . . . Scanalyzers . | . . . . . Garrison Access . | . . . . . Total Hacks 10 | . 2 1 7 . Successful 10 | . 2 1 7 . Failed . | . . . . . Catastrophic . | . . . . . Database Lockouts . | . . . . . Manual . | . . . . . Terminals 8 | . 2 1 5 . Fabricators . | . . . . . Repair Stations 2 | . . . 2 . Recycling Units . | . . . . . Scanalyzers . | . . . . . Garrison Access . | . . . . . Terminal Hacks 8 | . 2 1 5 . Record 6 | . 1 1 4 . Prototype ID Bank 1 | . . . 1 . Alert Level 1 | . 1 . . . Fabricator Hacks . | . . . . . Repair Station Hacks 2 | . . . 2 . Scan Component 1 | . . . 1 . Repair 1 | . . . 1 . Recycling Unit Hacks . | . . . . . Scanalyzer . | . . . . . Garrison Access Hacks . | . . . . . Unauthorized Hacks . | . . . . . Terminals . | . . . . . Fabricators . | . . . . . Repair Stations . | . . . . . Recycling Units . | . . . . . Scanalyzers . | . . . . . Garrison Access . | . . . . . Data Cores Recovered . | . . . . . Used . | . . . . . Hacking Detections 3 | . 1 . 2 . Full Trace Events . | . . . . . Feedback Events . | . . . . . Feedback Blocked . | . . . . . Robot Schematics Acquired . | . . . . . Robots Built . | . . . . . Authchips . | . . . . . Time . | . . . . . Total Robot Build Rating . | . . . . . Part Schematics Acquired . | . . . . . Parts Built . | . . . . . Authchips . | . . . . . Time . | . . . . . Total Part Build Rating . | . . . . . Parts Repaired 1 | . . . 1 . Time 32 | . . . 32 . Parts Recycled . | . . . . . Recycled Matter . | . . . . . Retrieved Matter . | . . . . . Retrieved Components . | . . . . . Parts Scanalyzed . | . . . . . Part Schematics Acquired . | . . . . . Parts Damaged . | . . . . . Bothacking | -11 -10 -10 -9 -9 ------------ Run | Scr Mat Min Mat Sto Used RIF Installer . | . . . . . Robots Hacked . | . . . . . Non-combat . | . . . . . Combat . | . . . . . Robot Hacks Applied . | . . . . . Relay Couplers Released . | . . . . . Fabnet Peak Effective % . | . . . . . Robots Rewired . | . . . . . Allies Hacked . | . . . . . Hacks Repelled . | . . . . . Allies | -11 -10 -10 -9 -9 -------- Run | Scr Mat Min Mat Sto Total Allies . | . . . . . Largest Group . | . . . . . Highest-Rated Group . | . . . . . Highest-Rated Ally . | . . . . . Total Orders . | . . . . . Ally Attacks . | . . . . . Total Damage . | . . . . . Kills . | . . . . . Allies Corrupted . | . . . . . Allies Melted . | . . . . . Intel | -11 -10 -10 -9 -9 ------- Run | Scr Mat Min Mat Sto Robot Analysis Total . | . . . . . Derelict Logs Recovered 1 | . . 1 . . Drone Launches . | . . . . . Drone Recoveries . | . . . . . Exploration | -11 -10 -10 -9 -9 ------------- Run | Scr Mat Min Mat Sto Turns Passed 1087 | 61 227 320 189 290 Spaces Moved 917 | 46 199 318 143 211 Core 1 | 1 . . . . Treads . | . . . . . Legs 153 | . . . . 153 Wheels 763 | 45 199 318 143 58 Hover . | . . . . . Flight . | . . . . . Fastest Speed 50 | 50 100 100 100 100 Average Speed 103 | 98 100 100 100 115 Slowest Speed 120 | 100 100 100 100 120 Overloaded Moves . | . . . . . Propulsion Burnouts . | . . . . . Robots Hopped . | . . . . . Cave-ins Triggered . | . . . . . Exploration Rate (%) 31 | 4 31 67 11 45 Regions Visited 4 Branch Regions 2 Pre-discovered Areas . | . . . . . Known Exits Taken . | . . . . . Unknown Exits Taken 4 | 1 1 1 1 . Scrap Searched 2 | . . 2 . . Spaces Dug . | . . . . . Terrain Destroyed . | . . . . . Melee . | . . . . . Projectile . | . . . . . AOE . | . . . . . Terrain Rammed . | . . . . . Walls Destroyed . | . . . . . Machines Disabled . | . . . . . Actions | -11 -10 -10 -9 -9 --------- Run | Scr Mat Min Mat Sto Total 1026 | 61 232 320 171 242 Wait 13 | . 3 . 10 . Move 913 | 45 198 317 142 211 Hop . | . . . . . Pick Up 32 | 12 13 1 5 1 Fast Attach 2 | . 1 . 1 . Attach 16 | 4 5 1 1 5 Detach 1 | . 1 . . . Swap 3 | . . . . 3 Drop 14 | . 11 1 2 . Fire 14 | . . . 9 5 Melee . | . . . . . Ram 3 | . . . 1 2 Kick 14 | . . . . 14 Crush . | . . . . . Escape Stasis . | . . . . . Rewire 1 | . . . . 1 Trap . | . . . . . Miscellaneous . | . . . . . Route ------- -11/Scrapyard -10/Materials -10/Mines (discovered 2 exits: *Mat x2) -9/Materials -9/Storage History --------- Turn | Location | Event 34 | -11/Scrapyard | Discovered new exit (range 16) 62 | -11/Scrapyard | Entered Materials 275 | -10/Materials | Discovered new exit (range 11) 289 | -10/Materials | Entered Mines 290 | -10/Mines | Discovered new exit (range 14) 315 | -10/Mines | Build established: Mutant 325 | -10/Mines | Learned Materials terminal intel 541 | -10/Mines | Discovered new exit (range 15) 609 | -10/Mines | Entered Materials 609 | -9/Materials | Evolved 2 slots: Utility x1, Weapon x1 610 | -9/Materials | Loaded intel: 11 terminal locations 686 | -9/Materials | Repaired Beam Rifle 719 | -9/Materials | Discovered new exit (range 11) 798 | -9/Materials | Entered Storage 975 | -9/Storage | Core integrity fell below 50% 1008 | -9/Storage | Lost 6 parts (1p1n2u2w) 1060 | -9/Storage | Core integrity fell below 20% 1088 | -9/Storage | Destroyed by G-47 Trooper with Particle Gun Last Messages --------------- 00968_ Hvy. Assault Rifle destroyed. 00969_ K-01 Serf collects debris. 00969_ Kicked Y-45 Defender out of the way. 00973_ Imp. Aluminum Leg destroyed. 00974_ Critical hit (Burn: +37). 00975_ Ion Engine destroyed. 00977_ Lgt. Armor Plating destroyed. 00995_ U-05 Engineer destroyed. 01012_ Kicked K-01 Serf. 01013_ Kicked R-06 Scavenger out of the way. 01014_ Kicked R-06 Scavenger. 01022_ Kicked W-16 Scout out of the way. 01034_ Imp. Aluminum Leg destroyed. 01059_ Critical hit (Burn: +37). 01061_ Kicked R-06 Scavenger out of the way. 01062_ Kicked R-06 Scavenger. 01068_ Imp. Aluminum Leg destroyed. 01070_ Kicked A-02 Transporter. 01076_ W-16 Scout sends out distress signal. 01086_ K-01 Serf destroyed. Map ----- +----------------------------------------------------+ | | | | | | | | | | | ?????????????????????????????????????????????????? | | ?????????????????????????????????????????????????? | | ?????????????????????????????????????????????????? | | ?????????????????????????????????????????????????? | | ?????????????????????????????????????????????????? | | ?????????????????????????????????????????????????? | | ?????????????????????????????????????????????????? | | ?????????????????????????????????????????????????? | | ?????????????????????????????????????????????????? | | ????????????????????#????????????????????????????? | | ????????????????????# ?????????????????????###???? | | ????????????????????# ????????????????????##T#???? | | ????????????????????# ???????????????????# "???? | | ????????????????????# ???????????????????? ???? | | ????????????????????# ??????????????????? #???? | | ????????????????????# ???????????????????#/##??? | | ???????????????+ ????? ???################ #??? | | ???????????????# #####+#### ! g Yg % #??? | | ???????????????# gg Y =%wYg########## #??? | | ???????????????# ar k = g #????????# #??? | | ???????????????# @ #???????## ##?? | | ????????????????#k########### #???????# ### | | ????????????????????????????#######???????# | | ??????????????????????????????????????????# | | ??????????????????????????????????????????# ### | | ??????????????????????????????????????????##/##### | | ??????????????????????????????????????????# | | ??????????????????????????????????????????# | | ??????????????????????????????????????????# | | ??????????????????????????????????????????# | | ??????????????????????????????????????????# | | ??????????????????????????????????????????# | | ??????????????????????????????????????????# | | ??????????????????????????????????????????# | | ??????????????????????????????????????????# | | ??????????????????????????????????????????######## | | ???????????????????????????????????????????# | | ?????????????????????????????????????????### | | ?????????????????????????????????????????#""[[ | | ?????????????????????????????????????????#"Y[ | | ?????????????????????????????????????????#"" | | ?????????????????????????????????????????### | | ???????????????????????###?????????????????# | | ???????????????????????#T##????????????????# | | ???????????????????????" #????????????????# | +----------------------------------------------------+ Best States ------------- Heat Dissipation 28 Energy Generation 10 Energy Capacity 250 Matter Stores 300 Matter Capacity 300 Sight Range 16 Robot Scan Range 14 Terrain Scan Density 10 Armor Coverage 150 Evasion (%) 55 Item Schematics ----------------- None Robot Schematics ------------------ None Fabricated ------------ Nothing Alien Tech Used ----------------- None Achievements -------------- None Challenges ------------ None Game ------ Seed NeutrinoMediumBeamcaster Manual? 0 Play Time 00:26:11 Cumulative 3.8 hours Start 2022.07.04 @ 11:32:45 End 2022.07.04 @ 12:08:20 Sessions 1 Manual Loads 0 Difficulty Rogue Special Mode None Game No. 4 Rogue 4 Adventurer 0 Explorer 0 Win Type - Total 0 Types 0/0/0/0/0/0/0/0/0 Lore% 11 Gallery% 5 Achievement% 6 Wizard Run 0 Options --------- ASCII 0 Keyboard 0 Movement Numpad Keybinds 0 Fullscreen 0 Font 16/Terminus Map View 76x50 Tactical HUD 1 Map Filters NONE Filters NONE Steam 1 RUN: e18cdc71-5c58-4d02-921f-d1328d6a934a